bitfinex/quotes_SOLUSD_20240808
["timestamp","ask_amount","ask_price","bid_price","bid_amount"]
[1723077532478,7.0175,142.5,142.42,6.1511]
[1723077532680,7.0182,142.49,142.42,6.1511]
[1723077533168,17.5384,142.55,142.42,6.1511]
[1723077533369,7.297015,142.56,142.43,46.57348291]
[1723077533790,20.0,142.55,142.43,46.57348291]
[1723077533995,7.016,142.53,142.43,46.57348291]
[1723077534176,7.0175,142.51,142.43,45.0]
[1723077534489,7.0193,142.47,142.42,6.1511]
[1723077534678,7.02,142.45,142.41,15.9113]
[1723077534882,7.0205,142.44,142.41,15.9113]
[1723077535083,45.66,142.51,142.41,15.9113]
[1723077535292,7.0176,142.5,142.41,15.9113]
[1723077535608,7.019,142.47,142.41,15.9113]
[1723077535811,63.2033,142.51,142.41,15.9113]
[1723077536478,7.0185,142.48,142.41,15.9113]
[1723077536978,7.0199,142.46,142.41,15.9113]
[1723077537293,66.7,142.51,142.41,15.9113]
[1723077537505,7.022,142.41,142.38,6.234]
[1723077537705,38.5883,142.47,142.38,6.234]
[1723077537706,7.0215,142.42,142.38,6.234]
[1723077538002,17.551,142.45,142.36,16.2619]
[1723077538188,7.0214,142.42,142.36,16.2619]
[1723077538511,7.0204,142.45,142.37,1.40385698]
[1723077538797,7.021,142.43,142.36,16.2619]
[1723077539007,7.0205,142.44,142.36,17.6663433]
[1723077540386,73.2292,142.51,142.36,16.2619]
[1723077540706,7.0195,142.46,142.37,46.40437581]
[1723077540915,7.0195,142.46,142.37,45.0]
[1723077541103,7.0201,142.45,142.37,45.0]
[1723077541404,7.0196,142.46,142.37,45.0]
[1723077541583,7.019,142.47,142.38,1.40410345]
[1723077541905,17.5461,142.49,142.36,16.2619]
[1723077542111,7.0201,142.45,142.36,17.66585086]
[1723077542284,17.549,142.46,142.36,16.2619]
[1723077542483,7.0234,142.38,142.36,16.2619]
[1723077542685,7.0239,142.37,142.36,16.2619]
[1723077542899,38.5919,142.44,142.36,16.2619]
[1723077543109,7.0233,142.39,142.36,16.2619]
[1723077543313,45.66,142.44,142.27,22.7495]
[1723077543610,7.024,142.37,142.27,24.15452214]
[1723077543795,7.0244,142.36,142.27,24.15452214]
[1723077543989,7.0232,142.39,142.27,24.15452214]
[1723077544307,17.5559,142.41,142.27,22.7495]
[1723077544516,7.024,142.37,142.27,24.1543296]
[1723077544833,7.29590057,142.41,142.27,44.1543296]
[1723077545015,7.0228,142.4,142.27,44.1543296]
[1723077545204,17.5546,142.42,142.27,24.1543296]
[1723077545406,7.296296,142.42,142.27,44.1543296]
[1723077545632,45.66,142.44,142.27,44.1543296]
[1723077545832,20.0,142.43,142.28,20.0]
[1723077546033,7.0228,142.4,142.29,1.57470168]
[1723077546231,7.0221,142.41,142.29,1.57470168]
[1723077546418,7.29582698,142.44,142.3,15.9915]
[1723077546728,38.5899,142.46,142.31,45.0]
[1723077547027,38.5899,142.46,142.31,46.40440556]
[1723077547028,7.29597695,142.44,142.31,46.40440556]
[1723077547232,7.29597695,142.44,142.32,0.34]
[1723077547529,7.29597695,142.44,142.31,46.40451755]
[1723077548304,7.022,142.41,142.32,0.34]
[1723077548555,7.022,142.41,142.33,1.40451718]
[1723077549409,7.0215,142.42,142.33,1.40451718]
[1723077549830,7.0219,142.41,142.33,1.40451718]
[1723077551846,7.29597695,142.44,142.35,16.3703]
[1723077552022,54.8959,142.49,142.36,46.40304321]
[1723077552210,7.32837337,142.47,142.36,46.40304321]
[1723077552415,7.02,142.45,142.36,46.40304321]
[1723077552728,24.87657337,142.47,142.35,17.77352338]
[1723077552927,7.021,142.43,142.36,46.40312481]
[1723077553234,7.0205,142.44,142.36,46.40312481]
[1723077553447,37.35,142.38,142.27,2.71606191]
[1723077553741,7.024,142.37,142.25,1.36685601]
[1723077553929,7.0249,142.35,142.25,1.36685601]
[1723077554630,37.35,142.38,142.24,16.1847]
[1723077554831,37.35,142.38,142.24,17.5516521]
[1723077555134,7.0249,142.35,142.24,17.5516521]
[1723077555346,54.9096,142.38,142.24,17.5516521]
[1723077555726,7.026,142.33,142.24,17.5516521]
[1723077555928,17.5624,142.35,142.24,17.5516521]
[1723077556129,37.35,142.38,142.24,17.5516521]
[1723077556438,20.17,142.37,142.24,17.5516521]
[1723077556751,17.5635,142.35,142.24,17.5516521]
[1723077556921,55.2917,142.37,142.24,17.5516521]
[1723077556922,7.0263,142.33,142.24,17.5516521]
[1723077557335,7.0266,142.32,142.24,17.5516521]
[1723077557530,7.0269,142.31,142.24,17.5516521]
[1723077558236,75.9524,142.35,142.24,16.1847]
[1723077558655,0.17,142.34,142.24,17.55117187]
[1723077558951,7.0274,142.3,142.24,16.1847]
[1723077559152,7.0269,142.32,142.24,17.55495896]
[1723077559324,7.027,142.31,142.24,16.1847]
[1723077559519,37.35,142.35,142.24,16.1847]
[1723077559730,0.17,142.34,142.24,16.1847]
[1723077559943,7.0276,142.3,142.24,16.1847]
[1723077560461,37.35,142.32,142.19,15.0622]
[1723077560632,7.0284,142.28,142.19,15.0622]
[1723077561033,37.35,142.32,142.19,15.0622]
[1723077561262,6.6345,142.19,141.93,54.24686028]
[1723077561472,7.0417,142.01,141.93,15.1479]
[1723077561643,37.35,142.11,141.93,15.1479]
[1723077561644,37.35,142.07,142.0,136.64804]
[1723077561850,1.4057,142.09,142.0,136.64804]
[1723077561851,37.35,142.09,142.0,136.64804]
[1723077562039,44.3912,142.02,142.0,136.64804]
[1723077562238,44.3912,142.02,141.76,15.4627]
[1723077562239,20.0,142.01,141.76,15.4627]
[1723077562560,37.35,141.94,141.76,15.4627]
[1723077562735,7.0473,141.9,141.76,15.4627]
[1723077562936,37.35,141.9,141.76,15.4627]
[1723077563235,37.35,141.9,141.77,1.05506053]
[1723077563436,8.74285949,141.96,141.81,20.0]
[1723077563672,37.35,141.99,141.82,20.0]
[1723077563963,45.95,142.01,141.83,21.40666417]
[1723077564136,17.6021,142.03,141.84,16.6376]
[1723077564332,45.95,142.0,141.84,16.6376]
[1723077564537,7.0448,141.95,141.84,16.6376]
[1723077564765,7.044,141.97,141.84,16.6376]
[1723077564965,1.4057,141.99,141.84,16.6376]
[1723077565255,1.5757,141.98,141.84,16.6376]
[1723077565461,1.4057,141.98,141.84,16.6376]
[1723077565635,7.0439,141.97,141.84,16.6376]
[1723077565842,7.0451,141.95,141.84,16.6376]
[1723077566141,7.0469,141.91,141.84,16.6376]
[1723077566354,7.34661588,142.0,141.84,16.6376]
[1723077566355,7.0453,141.94,141.84,16.6376]
[1723077566637,7.34661588,142.0,141.84,16.6376]
[1723077566638,8.4526,141.99,141.84,16.6376]
[1723077566848,1.4057,141.98,141.84,16.6376]
[1723077567440,7.0463,141.92,141.84,16.6376]
[1723077567646,21.12,141.96,141.84,16.6376]
[1723077567967,7.0489,141.87,141.84,16.6376]
[1723077568138,45.95,141.87,141.75,0.071]
[1723077568334,21.12,141.91,141.75,0.071]
[1723077568335,7.0474,141.9,141.76,16.2062]
[1723077568541,1.4057,141.89,141.76,16.2062]
[1723077568766,7.0473,141.9,141.76,16.2062]
[1723077568963,1.4057,141.92,141.76,16.2062]
[1723077569347,7.0493,141.86,141.76,16.2062]
[1723077569645,1.4057,141.85,141.76,16.2062]
[1723077569848,7.0503,141.84,141.76,16.2062]
[1723077570063,7.0512,141.82,141.76,16.2062]
[1723077570261,1.4057,141.87,141.76,16.2062]
[1723077570465,1.4057,141.87,141.75,0.071]
[1723077570466,46.29,141.86,141.75,0.071]
[1723077570681,7.0537,141.77,141.75,0.071]
[1723077570967,7.053,141.79,141.75,0.071]
[1723077571267,7.0537,141.77,141.75,0.071]
[1723077571441,7.053,141.79,141.75,0.071]
[1723077571639,1.4057,141.83,141.75,0.071]
[1723077571840,17.6209,141.88,141.75,0.071]
[1723077572069,1.4057,141.85,141.75,0.071]
[1723077572259,7.0523,141.8,141.75,0.071]
[1723077572466,0.17,141.84,141.75,0.071]
[1723077572670,7.0538,141.77,141.75,0.071]
[1723077572968,7.053,141.79,141.75,0.071]
[1723077573171,1.4057,141.83,141.75,0.071]
[1723077573379,7.0536,141.78,141.75,0.071]
[1723077573669,0.17,141.82,141.75,0.071]
[1723077573869,0.17,141.83,141.75,0.071]
[1723077574168,7.0532,141.78,141.75,0.071]
[1723077574362,7.0526,141.8,141.75,0.071]
[1723077574571,7.0522,141.8,141.75,0.071]
[1723077574874,14.39105517,141.79,141.75,0.071]
[1723077575044,7.33835517,141.79,141.75,0.071]
[1723077575766,7.33414283,141.85,141.76,15.072]
[1723077575983,11.26171708,141.92,141.77,45.0]
[1723077576149,1.4057,141.91,141.76,15.072]
[1723077576345,7.0492,141.86,141.76,15.072]
[1723077576545,17.621,141.88,141.76,15.072]
[1723077576846,7.0502,141.84,141.76,15.072]
[1723077577156,1.4057,141.84,141.76,15.072]
[1723077577466,7.0516,141.82,141.76,15.072]
[1723077577649,1.4057,141.87,141.76,15.072]
[1723077577850,7.0507,141.83,141.76,15.072]
[1723077578181,7.33142467,141.9,141.76,15.072]
[1723077578182,1.4057,141.82,141.76,15.072]
[1723077578344,7.0518,141.81,141.76,15.072]
[1723077578548,7.0522,141.8,141.76,15.072]
[1723077578760,1.4057,141.85,141.76,15.072]
[1723077578761,17.6268,141.83,141.76,15.072]
[1723077578971,7.0536,141.77,141.75,0.071]
[1723077579274,8.4598,141.76,141.75,0.071]
[1723077579470,7.0541,141.76,141.75,0.071]
[1723077579645,73.5141,141.76,141.75,0.071]
[1723077579848,73.5141,141.76,141.62,0.47779365]
[1723077579849,112.41,141.76,141.65,1.18215449]
[1723077580077,38.758,141.74,141.65,1.18215449]
[1723077580250,46.5757,141.75,141.65,1.18215449]
[1723077580251,7.0591,141.66,141.65,1.18215449]
[1723077580448,17.642,141.71,141.65,1.18215449]
[1723077580670,7.0591,141.66,141.65,1.18215449]
[1723077580975,7.0586,141.67,141.65,1.18215449]
[1723077581172,7.0591,141.66,141.65,1.18215449]
[1723077581880,7.0586,141.68,141.65,1.18215449]
[1723077582247,7.059,141.67,141.65,1.18215449]
[1723077582463,7.0591,141.66,141.65,1.18215449]
[1723077582769,1.4057,141.69,141.65,1.18215449]
[1723077582972,7.0587,141.67,141.65,1.18215449]
[1723077583170,7.0583,141.68,141.65,1.18215449]
[1723077583477,1.4057,141.69,141.65,1.18215449]
[1723077583649,7.0586,141.68,141.65,1.18215449]
[1723077583854,7.0571,141.7,141.65,1.18215449]
[1723077584049,1.4057,141.71,141.65,1.18215449]
[1723077584272,1.4057,141.7,141.65,1.18215449]
[1723077584575,8.4634,141.69,141.65,1.18215449]
[1723077584783,7.0577,141.69,141.65,1.18215449]
[1723077585069,45.95,141.77,141.65,1.18215449]
[1723077585070,7.0571,141.71,141.65,1.18215449]
[1723077585262,1.4057,141.7,141.65,1.18215449]
[1723077585464,1.4057,141.75,141.65,1.18215449]
[1723077585664,7.0571,141.71,141.65,1.18215449]
[1723077585870,1.4057,141.7,141.65,1.18215449]
[1723077586096,45.95,141.77,141.65,1.18215449]
[1723077586270,7.0561,141.72,141.65,1.18215449]
[1723077586582,7.0556,141.73,141.65,1.18215449]
[1723077586751,1.4057,141.75,141.65,1.18215449]
[1723077586752,7.0551,141.75,141.65,1.18215449]
[1723077586949,7.33413777,141.76,141.65,1.18215449]
[1723077587576,7.0553,141.74,141.65,1.18215449]
[1723077588077,7.055,141.75,141.65,1.18215449]
[1723077588784,1.4057,141.74,141.65,1.18215449]
[1723077589074,7.33413777,141.76,141.65,1.18215449]
[1723077589252,7.0556,141.73,141.65,1.18215449]
[1723077589452,1.4057,141.73,141.65,1.18215449]
[1723077589652,7.0558,141.73,141.65,1.18215449]
[1723077589885,1.4057,141.73,141.65,1.18215449]
[1723077590753,1.4057,141.75,141.65,1.18215449]
[1723077591194,7.0561,141.73,141.65,1.18215449]
[1723077591367,1.4057,141.72,141.65,1.18215449]
[1723077591773,7.0572,141.7,141.65,1.18215449]
[1723077591980,0.17,141.73,141.65,1.18215449]
[1723077592186,1.4057,141.73,141.65,1.18215449]
[1723077592475,7.0568,141.71,141.65,1.18215449]
[1723077592952,1.4057,141.7,141.65,1.18215449]
[1723077593277,1.4057,141.75,141.65,1.18215449]
[1723077593476,8.73983777,141.76,141.65,1.18215449]
[1723077593779,7.0575,141.7,141.65,1.18215449]
[1723077593950,45.0,141.75,141.65,1.18215449]
[1723077593951,1.4057,141.69,141.65,1.18215449]
[1723077594156,1.4057,141.72,141.65,1.18215449]
[1723077594576,19.0451,141.73,141.65,1.18215449]
[1723077594872,1.4057,141.75,141.65,1.18215449]
[1723077595458,7.0565,141.72,141.65,1.18215449]
[1723077595655,7.0556,141.74,141.65,1.18215449]
[1723077595980,7.0552,141.74,141.65,1.18215449]
[1723077596162,7.33413777,141.76,141.66,6.3939]
[1723077596370,8.73983777,141.76,141.66,6.3939]
[1723077596557,7.33413777,141.76,141.66,6.3939]
[1723077596758,7.33413777,141.76,141.67,45.0]
[1723077596965,45.95,141.85,141.68,15.2105]
[1723077597176,7.33036744,141.78,141.68,15.2105]
[1723077597478,7.0558,141.73,141.68,15.2105]
[1723077597665,7.0547,141.75,141.68,15.2105]
[1723077597982,7.0556,141.73,141.68,15.2105]
[1723077598157,47.49006025,141.78,141.68,15.2105]
[1723077598357,26.37006025,141.78,141.68,15.2105]
[1723077598780,24.96436025,141.78,141.68,15.2105]
[1723077598960,7.0562,141.72,141.68,15.2105]
[1723077599158,26.37006025,141.78,141.68,15.2105]
[1723077599374,47.49006025,141.78,141.68,15.2105]
[1723077599588,26.37006025,141.78,141.68,15.2105]
[1723077599967,7.0562,141.72,141.68,15.2105]
[1723077600171,7.0552,141.74,141.68,15.2105]
[1723077600586,7.0559,141.73,141.68,15.2105]
[1723077600776,7.0551,141.74,141.68,15.2105]
[1723077600960,47.49006025,141.78,141.68,15.2105]
[1723077600961,24.96436025,141.78,141.68,15.2105]
[1723077601165,7.33056025,141.78,141.68,15.2105]
[1723077601368,7.0537,141.77,141.68,15.2105]
[1723077601565,7.0537,141.77,141.69,45.0]
[1723077602082,7.33056025,141.78,141.68,15.2105]
[1723077602280,38.7428,141.87,141.68,15.2105]
[1723077602472,17.625,141.85,141.7,16.3809]
[1723077602676,7.0517,141.81,141.7,16.3809]
[1723077602875,43.98052201,141.86,141.7,16.3809]
[1723077602876,1.4057,141.8,141.7,16.3809]
[1723077603068,42.57482201,141.86,141.7,16.3809]
[1723077603069,1.4057,141.79,141.7,16.3809]
[1723077603271,7.0566,141.71,141.7,16.3809]
[1723077603487,1.4057,141.81,141.7,16.3809]
[1723077603669,7.0541,141.76,141.7,16.3809]
[1723077604069,42.57482201,141.86,141.7,16.3809]
[1723077604280,21.12,141.84,141.7,16.3809]
[1723077604600,42.6957,141.83,141.7,16.3809]
[1723077604793,41.12,141.82,141.7,16.3809]
[1723077604966,1.4057,141.83,141.7,16.3809]
[1723077605170,1.4057,141.82,141.71,45.0]
[1723077605363,7.32832201,141.86,141.72,0.34]
[1723077605577,7.32832201,141.86,141.74,15.2552]
[1723077605896,14.37752201,141.86,141.75,46.57882323]
[1723077606066,19.0189,141.94,141.75,65.34]
[1723077606261,1.4057,141.93,141.76,35.2552]
[1723077606487,7.0507,141.83,141.76,15.2552]
[1723077606671,7.32513679,141.91,141.76,15.2552]
[1723077606672,1.4057,141.9,141.76,15.2552]
[1723077606988,1.4057,141.89,141.77,45.0]
[1723077607374,7.0492,141.86,141.77,45.0]
[1723077607680,7.0482,141.88,141.77,45.0]
[1723077607890,7.32513679,141.91,141.78,0.34]
[1723077608087,45.95,141.98,141.8,16.163]
[1723077608088,17.6081,141.98,141.8,16.163]
[1723077608400,7.32524132,141.95,141.82,15.6157]
[1723077608567,7.0435,141.98,141.85,15.6157]
[1723077608763,17.6041,142.02,141.86,45.0]
[1723077608764,7.0447,141.95,141.86,45.0]
[1723077608964,7.32409979,141.99,141.87,0.17]
[1723077609166,7.32409979,141.99,141.87,0.34]
[1723077609398,7.32409979,141.99,141.88,1.14496417]
[1723077609766,1.4057,142.06,141.89,15.9557]
[1723077609968,7.32206351,142.04,141.91,6.3697]
[1723077610183,1.4057,142.03,141.91,6.3697]
[1723077610397,1.4057,142.03,141.92,45.0]
[1723077610584,7.0416,142.02,141.92,45.0]
[1723077610772,7.0418,142.01,141.92,45.0]
[1723077610969,7.32206351,142.04,141.93,0.7175411]
[1723077611168,11.04549607,142.07,141.93,0.7175411]
[1723077611399,11.04549607,142.07,141.92,45.17]
[1723077611400,7.0381,142.09,141.95,15.9751]
[1723077611697,7.31905505,142.08,141.96,45.0]
[1723077611865,7.31905505,142.08,141.95,15.9751]
[1723077612072,7.0407,142.04,141.95,15.9751]
[1723077612976,7.31905505,142.08,141.95,15.9751]
[1723077612977,7.0415,142.02,141.95,15.9751]
[1723077613201,70.86475505,142.08,141.95,15.9751]
[1723077613492,17.5999,142.05,141.95,15.9751]
[1723077613667,1.4057,142.04,141.95,15.9751]
[1723077613871,88.46255505,142.08,141.95,15.9751]
[1723077613872,7.31905505,142.08,141.95,15.9751]
[1723077614507,7.0399,142.05,141.95,15.9751]
[1723077614796,7.0397,142.06,141.96,45.0]
[1723077614986,7.0387,142.07,141.96,45.0]
[1723077615297,7.0394,142.06,141.96,45.0]
[1723077615474,7.0394,142.06,141.95,15.9751]
[1723077615675,7.0394,142.06,141.96,45.0]
[1723077615875,14.35775505,142.08,141.96,45.0]
[1723077616186,7.31905505,142.08,141.98,6.3311]
[1723077616391,7.31905505,142.08,141.99,45.17]
[1723077616780,27.0167,142.12,142.01,15.6326]
[1723077617095,11.03126155,142.13,142.03,21.6769]
[1723077617299,2.84348196,142.24,142.04,40.0]
[1723077617473,7.32005514,142.19,142.06,20.0]
[1723077617670,10.90303551,142.25,142.07,0.84470205]
[1723077617901,7.0311,142.23,142.08,0.50466652]
[1723077618193,7.0303,142.24,142.1,21.8015]
[1723077618398,7.0309,142.23,142.11,46.53224148]
[1723077618601,1.4057,142.22,142.11,45.17]
[1723077618804,18.22877207,142.25,142.12,0.17]
[1723077618970,18.22877207,142.25,142.12,0.34]
[1723077618971,10.90303551,142.25,142.12,0.34]
[1723077619173,10.90303551,142.25,142.12,20.34]
[1723077619491,17.93303551,142.25,142.13,45.0]
[1723077619673,12.30873551,142.25,142.13,45.0]
[1723077619903,12.30873551,142.25,142.1,41.8015]
[1723077620093,7.32432415,142.27,142.12,20.0]
[1723077620305,7.32432415,142.27,142.13,65.69787102]
[1723077620616,7.32432415,142.27,142.13,65.52787102]
[1723077620819,7.32432415,142.27,142.13,45.52787102]
[1723077621193,7.32432415,142.27,142.13,65.52787102]
[1723077621501,28.58287463,142.35,142.15,22.7146]
[1723077621710,7.0264,142.32,142.19,20.0]
[1723077622024,7.0254,142.34,142.2,45.70020194]
[1723077622192,17.5613,142.36,142.2,45.0]
[1723077622391,7.0241,142.37,142.24,20.0]
[1723077622621,7.0241,142.37,142.25,46.38856868]
[1723077622810,17.5553,142.41,142.25,46.21856868]
[1723077622999,17.5553,142.41,142.26,0.17]
[1723077623201,7.027,142.31,142.22,17.83406868]
[1723077623431,81.064,142.4,142.22,17.83406868]
[1723077623432,7.0274,142.3,142.23,45.0]
[1723077623609,7.0279,142.29,142.23,45.0]
[1723077623802,17.5661,142.32,142.22,16.6155]
[1723077624215,7.0284,142.28,142.22,16.6155]
[1723077624523,7.3264267,142.31,142.22,18.02140919]
[1723077624829,14.3533267,142.31,142.22,18.02140919]
[1723077625322,1.5757,142.35,142.22,16.6155]
[1723077625528,7.3266915,142.33,142.22,16.6155]
[1723077625693,1.5757,142.32,142.22,16.6155]
[1723077625893,7.0298,142.26,142.22,16.6155]
[1723077626321,24.8914915,142.33,142.22,16.6155]
[1723077626510,7.0293,142.27,142.22,16.6155]
[1723077626708,7.0284,142.28,142.22,16.6155]
[1723077627020,7.3266915,142.33,142.22,16.6155]
[1723077627228,7.0269,142.31,142.23,45.0]
[1723077627399,7.0269,142.31,142.22,16.6155]
[1723077627601,7.3266915,142.33,142.23,1.18764758]
[1723077627602,14.3529915,142.33,142.23,1.18764758]
[1723077627816,14.3529915,142.33,142.23,46.18764758]
[1723077628127,63.5073,142.4,142.24,0.17]
[1723077628433,17.56,142.37,142.23,45.0]
[1723077628598,1.4057,142.36,142.22,16.6155]
[1723077628927,7.0294,142.26,142.22,18.02055491]
[1723077629101,7.0294,142.26,142.22,16.6155]
[1723077629810,17.5701,142.29,142.21,6.0628]
[1723077630124,45.95,142.27,142.09,21.8618]
[1723077630327,21.7457,142.28,142.09,21.8618]
[1723077630328,21.12,142.22,142.09,21.8618]
[1723077630535,7.0368,142.11,142.09,21.8618]
[1723077630896,7.0372,142.1,142.09,6.1704]
[1723077631110,7.0372,142.1,142.03,15.143]
[1723077631111,45.95,142.19,142.04,6.3423]
[1723077631434,20.0,142.18,142.04,6.3423]
[1723077631799,7.0358,142.13,142.04,6.3423]
[1723077631999,21.4057,142.18,142.04,6.3423]
[1723077632204,7.0353,142.14,142.04,6.3423]
[1723077632431,7.0369,142.11,142.04,6.3423]
[1723077632628,7.0374,142.1,142.04,6.3423]
[1723077632929,7.0361,142.13,142.04,6.3423]
[1723077633131,17.5858,142.16,142.05,0.49159282]
[1723077633303,20.0,142.15,142.04,6.3423]
[1723077633625,42.5257,142.15,142.04,6.3423]
[1723077633820,7.0361,142.13,142.04,6.3423]
[1723077634024,18.9878,142.19,142.04,6.3423]
[1723077634228,1.4057,142.23,142.04,6.3423]
[1723077634403,22.5257,142.22,142.04,6.3423]
[1723077634604,7.0353,142.14,142.04,6.3423]
[1723077634937,22.5257,142.19,142.04,6.3423]
[1723077635119,7.0378,142.09,142.04,6.3423]
[1723077635552,17.5907,142.12,142.04,6.3423]
[1723077635836,7.0388,142.07,142.04,6.3423]
[1723077636019,7.0383,142.08,142.04,6.3423]
[1723077636538,7.0389,142.07,142.04,6.3423]
[1723077636831,1.4057,142.1,142.04,6.3423]
[1723077637040,7.0409,142.03,141.99,6.5677]
[1723077637212,7.0408,142.03,141.99,6.5677]
[1723077637936,7.0419,142.01,141.99,6.5677]
[1723077638117,7.0413,142.02,141.99,6.5677]
[1723077638315,17.5967,142.08,141.99,6.5677]
[1723077638535,7.0407,142.04,141.99,6.5677]
[1723077638926,7.0398,142.05,141.99,6.5677]
[1723077639132,7.0398,142.05,141.99,7.97344457]
[1723077639335,7.0404,142.04,141.99,6.5677]
[1723077639515,7.33012494,142.07,141.99,6.5677]
[1723077639717,7.0413,142.02,141.97,15.1102]
[1723077640522,7.0396,142.06,141.98,1.40843183]
[1723077640727,7.04,142.05,141.97,15.1102]
[1723077641048,7.33012494,142.07,141.97,15.1102]
[1723077641216,27.46911892,142.11,141.97,15.60917412]
[1723077641421,7.0383,142.08,141.98,45.34]
[1723077641942,7.32920343,142.11,141.99,21.31967922]
[1723077642130,7.0364,142.12,142.0,45.17]
[1723077642329,7.0364,142.12,142.01,1.48989704]
[1723077642528,7.0349,142.15,142.02,7.7774041]
[1723077642838,7.32615163,142.16,142.03,45.0]
[1723077643229,8.73185163,142.16,142.03,45.0]
[1723077643540,7.0379,142.09,142.02,6.2876]
[1723077644045,7.32615163,142.16,142.03,1.40741399]
[1723077644539,17.5834,142.18,142.04,0.17]
[1723077644745,7.0352,142.15,142.06,15.0131]
[1723077645037,17.5834,142.18,142.06,15.0131]
[1723077645038,7.0367,142.12,142.06,15.0131]
[1723077645246,17.5834,142.18,142.07,45.0]
[1723077645247,7.0337,142.18,142.07,45.0]
[1723077645450,2.84235803,142.24,142.09,6.3597]
[1723077645619,10.27125323,142.33,142.1,55.45899736]
[1723077645620,7.0317,142.22,142.1,55.45899736]
[1723077645820,7.32075088,142.27,142.11,21.40651242]
[1723077646028,7.32075088,142.27,142.15,20.0]
[1723077646230,1.4057,142.33,142.17,6.3597]
[1723077646430,17.5673,142.31,142.17,6.3597]
[1723077646633,1.4057,142.3,142.17,6.3597]
[1723077646831,7.0298,142.25,142.17,6.3597]
[1723077647037,18.973,142.31,142.17,6.3597]
[1723077647222,18.973,142.31,142.18,45.0]
[1723077647223,17.5673,142.31,142.18,45.0]
[1723077647421,7.029,142.27,142.18,45.0]
[1723077647642,7.0282,142.29,142.18,46.40483443]
[1723077647849,7.0282,142.29,142.19,0.34]
[1723077648024,7.0282,142.29,142.2,1.40463684]
[1723077648217,17.5675,142.31,142.18,54.8603641]
[1723077648418,7.0294,142.26,142.18,45.0]
[1723077649248,17.5675,142.31,142.18,46.40601718]
[1723077649249,7.0286,142.28,142.18,46.40601718]
[1723077649430,7.0286,142.28,142.19,0.17]
[1723077649636,7.0288,142.27,142.19,0.17]
[1723077650130,7.0295,142.26,142.18,46.18308753]
[1723077650330,7.0289,142.27,142.18,46.18308753]
[1723077650647,7.0284,142.28,142.18,46.18308753]
[1723077650831,7.0279,142.29,142.19,0.34]
[1723077651034,27.0285,142.28,142.2,1.18306143]
[1723077651349,7.029,142.27,142.2,1.18306143]
[1723077651848,7.0273,142.31,142.21,0.17]
[1723077652023,7.0269,142.31,142.21,1.35297823]
[1723077652846,7.32766361,142.32,142.21,1.35297823]
[1723077653036,7.32766361,142.32,142.23,16.5278]
[1723077653231,7.32766361,142.32,142.24,46.52570336]
[1723077653419,7.32766361,142.32,142.25,6.5412]
[1723077653659,7.32766361,142.32,142.26,45.0]
[1723077654632,6.5085,142.49,142.27,1.3481872]
[1723077654832,17.556,142.41,142.28,0.34]
[1723077655154,7.023,142.39,142.29,1.3479977]
[1723077655335,7.023,142.39,142.3,0.17]
[1723077655529,7.0234,142.38,142.3,0.34]
[1723077655728,18.9599,142.42,142.29,45.0]
[1723077655928,18.9599,142.42,142.28,45.17]
[1723077656146,7.024,142.37,142.29,0.17]
[1723077656445,7.0245,142.36,142.29,0.17]
[1723077656649,7.0238,142.38,142.28,45.17]
[1723077656823,18.9599,142.42,142.28,45.17]
[1723077656824,7.0249,142.36,142.28,45.17]
[1723077657026,17.5542,142.42,142.29,0.17]
[1723077657226,21.4057,142.41,142.28,45.17]